Cogmind - Beta 17.1 @@@ ROGUE MODE // 2026.08.26 @ 12:42:51 Player: DietSnapple Result: Destroyed by as-90949 with Assembled F-torch Performance ------------- Evolutions (0) 0 Regions Visited (2) 400 Robots Destroyed (22) 110 Value Destroyed (468) 468 Prototype IDs (2) 40 Alien Tech Used (0) 0 Bonus (0) 0 TOTAL SCORE: 1018 Bonus ------- None Cogmind --------- Core Integrity 0/250 Matter 265/300 Energy 73/100 System Corruption 2% Temperature Cool (20) Movement Core (50) Location -10/Mines Parts ------- > --- POWER (1) -------- (None) > --- PROPULSION (2) --- (None) > --- UTILITY (2) ------ (None) > --- WEAPON (2) ------- (None) > --- INVENTORY (5) ---- Light Ion Engine Compact Wheel Seismic Detector Utility Shielding Peak State ------------ > --- POWER ------------ Ion Engine > --- PROPULSION ------- Light Treads Light Treads > --- UTILITY ---------- Small Storage Unit Seismic Detector > --- WEAPON ----------- Assault Rifle Light Assault Rifle > --- INVENTORY -------- Light Ion Engine Compact Wheel Compact Wheel Medium Laser [Rating: 7] Favorites ----------- Power Ion Engine Engine Ion Engine Propulsion Light Treads Treads Light Treads Utility Seismic Detector Device Seismic Detector Storage High-capacity Storage Unit Weapon Light Assault Rifle Ballistic Gun Light Assault Rifle Launcher EMP Blaster Build | -11 -10 -10 ------- Run | Yrd Mat Min Slots Evolved . | . . . Power . | . . . Propulsion . | . . . Utility . | . . . Weapon . | . . . Parts Attached 13 | 8 4 1 Power 2 | 2 . . Engine 2 | 2 . . Core . | . . . Reactor . | . . . Propulsion 4 | 2 2 . Treads 4 | 2 2 . Leg . | . . . Wheel . | . . . Hover . | . . . Flight . | . . . Utility 4 | 2 2 . Device 2 | 1 1 . Storage 2 | 1 1 . Processor . | . . . Hackware . | . . . Protection . | . . . Artifact . | . . . Weapon 3 | 2 . 1 Energy Gun . | . . . Energy Cannon . | . . . Ballistic Gun 2 | 2 . . Ballistic Cannon . | . . . Launcher 1 | . . 1 Special Weapon . | . . . Impact Weapon . | . . . Slashing Weapon . | . . . Piercing Weapon . | . . . Special Melee Weapon . | . . . Unidentified Prototypes . | . . . Parts Lost 1 | . . 1 Power . | . . . Propulsion . | . . . Utility . | . . . Weapon 1 | . . 1 Highest Loss Streak 1 | . . 1 To Critical Strikes . | . . . Average Backups 6 | 2 6 6 Power . | . 1 1 Propulsion 1 | 1 2 1 Utility 1 | . 1 2 Weapon 1 | . 1 1 Tool/Special . | . . . Unused Backups 5 | . 1 4 Power . | . . . Propulsion 3 | . 1 2 Utility 1 | . . 1 Weapon 1 | . . 1 Tool/Special . | . . . Average Slot Usage (%) 99 | . 100 77 Engine 13 | . 14 11 Treads 27 | . 28 22 Device 13 | . 14 8 Storage 13 | . 14 11 Ballistic Gun 27 | . 28 22 Peak Build Rating 7 | 7 7 7 Average Rating 6 | 4 6 3 On Entrance 4 | . 7 7 Avg Prop Armor Cover (%) 21 | . 21 . Naked Turns 13 | . . 13 Heaviest Build 49 | 14 49 49 Greatest Support 40 | 40 40 40 Greatest Overweight (x) 4 | . 4 1 Average Overweight (x) . | . . . Largest Inventory Capacity 20 | 8 20 20 Average Capacity 13 | 6 14 13 Most Carried 8 | 4 8 8 Average Carried 6 | 2 6 6 Final Capacity 20 | 8 20 5 Final Carried 8 | 4 8 4 Class Distribution -------------------- 100% | Mutant Dominant Class ---------------- Mutant | -10/Materials Mutant | -10/Mines Resources | -11 -10 -10 ----------- Run | Yrd Mat Min Matter Collected 687 | 115 572 . Remotely . | . . . Salvage Created 686 | 10 676 . Parts 43 | 3 40 . Haulers Intercepted 2 | . 2 . Recyclers Shooed 2 | 1 1 . Parts Field Recycled . | . . . Retrieved Matter . | . . . Parts Self-Destructed . | . . . Prevented . | . . . Parts Restored . | . . . Kills | -11 -10 -10 ------- Run | Yrd Mat Min Combat Hostiles Destroyed 13 | . 13 . Guns 13 | . 13 . Classes Destroyed 7 | 1 6 . Worker 3 | . 3 . Tunneler 1 | 1 . . Hauler 2 | . 2 . Operator 2 | . 2 . Watcher 1 | . 1 . Swarmer 3 | . 3 . Grunt 10 | . 10 . Best Kill Streak 3 | 1 3 . Combat Bots Only 3 | . 3 . Max Kills in Single Turn 1 | 1 1 . Gunslinging . | . . . Exploded . | . . . Melee . | . . . Uniques/NPCs Destroyed . | . . . Combat | -11 -10 -10 -------- Run | Yrd Mat Min Hostile Shots Fired 86 | . 59 27 Missed 22 | . 15 7 Hits 64 | . 44 20 Melee 2 | . . 2 Projectile 62 | . 44 18 AOE 3 | . . 3 Damage Taken 842 | . 480 362 Core 257 | . 43 214 Absorbed by Shields . | . . . Core Remaining (%) 100 | 100 . . Volleys Fired 85 | 4 80 1 Largest 2 | 2 2 1 Hottest 40 | 40 40 33 Shots Fired 168 | 8 159 1 Gun 167 | 8 159 . Cannon . | . . . Launcher 1 | . . 1 Special . | . . . Kinetic 167 | 8 159 . Thermal . | . . . Explosive . | . . . Electromagnetic 1 | . . 1 Robot Hit Streak 12 | 5 12 . Robot Miss Streak 4 | 1 4 1 Penetration Max . | . . . Secondary Targets . | . . . Shots Hit Robots 105 | 7 98 . Core Hits 48 | 2 43 3 Critical Kills 1 | . 1 . Critical Parts Destroyed 1 | . 1 . Critical Strikes 2 | . 2 . Destroy 2 | . 2 . Melee Attacks . | . . . Impact . | . . . Slashing . | . . . Piercing . | . . . Sneak Attacks . | . . . Combat Hostiles . | . . . Follow-up Attacks . | . . . Damage Inflicted 1221 | 67 1058 96 Guns 1125 | 67 1058 . Cannons . | . . . Explosions 96 | . . 96 Melee . | . . . Ramming . | . . . Kinetic 1125 | 67 1058 . Thermal . | . . . Explosive . | . . . Electromagnetic 96 | . . 96 Impact . | . . . Slashing . | . . . Piercing . | . . . Highest Corruption 2 | . 2 2 Average Corruption 2 | . 2 2 Corruption Purged . | . . . Corruption Blocked . | . . . Effects 25 | . 24 1 Message Errors 8 | . 8 . Matter Fused 4 | . 4 . Heat Flow Errors 2 | . 2 . Energy Discharges 2 | . 2 . Parts Rejected 3 | . 2 1 Parts Fused 1 | . 1 . Data Loss (minor) 2 | . 2 . Misfires 1 | . 1 . Weapon Failures 2 | . 2 . Overload Shots . | . . . Overflow Damage . | . . . Projectiles . | . . . Explosions . | . . . Melee . | . . . Knockbacks . | . . . Impact . | . . . Kinetic . | . . . Secondary . | . . . Self-Inflicted Damage . | . . . Shots . | . . . Rammed . | . . . Targets Rammed . | . . . Kicked . | . . . Crushed . | . . . Highest Temperature 255 | . 255 22 Average Temperature 59 | . 64 11 Received Heat Transfer 393 | . 213 180 Effects 2 | . 2 . Interference 2 | . 2 . Siege Activations . | . . . Martial Activations . | . . . Shielding Activations . | . . . Robots Disrupted . | . . . Combat Hostiles . | . . . Robots Corrupted . | . . . Combat Hostiles . | . . . Parts Fried . | . . . Impact Corruptions . | . . . Robots Melted . | . . . Combat Hostiles . | . . . Parts Melted . | . . . Heat Transferred . | . . . Parts Sabotaged . | . . . Parts Stolen . | . . . Parts Stripped . | . . . Power Chain Reactions . | . . . Alert | -11 -10 -10 ------- Run | Yrd Mat Min Maximum Alert Level . | . . . Low Security (%) 100 | 100 100 100 Level 1 . | . . . Level 2 . | . . . Level 3 . | . . . Level 4 . | . . . Level 5 . | . . . High Security . | . . . Max Security . | . . . Peak Influence 140 | 5 140 . Initial 3 | . 3 . Average 31 | . 34 . Influence Increases 411 | 5 406 . Destroy 0b10 Robot/C 260 | . 260 . Destroy 0b10 Robot/NC 45 | 5 40 . Destroy Leader 66 | . 66 . Successful Hack 10 | . 10 . Disable Machine 15 | . 15 . Lose Combat Pursuer 15 | . 15 . Influence Decreases 411 | . 411 . Entered New Map 2 | . 2 . Time Decay 409 | . 409 . Squads Dispatched 3 | . 3 . Investigation . | . . . Extermination . | . . . Reinforcement 3 | . 3 . Assault . | . . . Garrison . | . . . Intercept . | . . . Searches Triggered . | . . . Construction Impeded . | . . . Haulers Reinforced . | . . . Active Scanning Responses . | . . . Cargo Convoy Interrupts . | . . . Stealth | -11 -10 -10 --------- Run | Yrd Mat Min Distress Signals 6 | . 6 . Communications Jammed . | . . . Distress Signals . | . . . Times Spotted 49 | . 26 23 Peak Tracking Total 19 | . 5 19 Tactical Retreats 1 | . 1 . Traps | -11 -10 -10 ------- Run | Yrd Mat Min Traps Triggered 1 | . 1 . Indirectly . | . . . Trap Hack Attempts . | . . . Triggered . | . . . Disarmed . | . . . Reprogrammed . | . . . Reused . | . . . Traps Extracted . | . . . Installed . | . . . Triggered . | . . . Machines | -11 -10 -10 ---------- Run | Yrd Mat Min Machines Disabled 1 | . 1 . Max in Single Turn 1 | . 1 . Machines Repaired . | . . . Machines Dismantled . | . . . Machines Sabotaged . | . . . Overloaded Fab Kills . | . . . Hacking | -11 -10 -10 --------- Run | Yrd Mat Min Machines Accessed 1 | . 1 . Terminals 1 | . 1 . Fabricators . | . . . Repair Stations . | . . . Recycling Units . | . . . Scanalyzers . | . . . Garrison Access . | . . . Total Hacks 2 | . 2 . Successful 2 | . 2 . Failed . | . . . Catastrophic . | . . . Database Lockouts . | . . . Manual . | . . . Terminals 2 | . 2 . Fabricators . | . . . Repair Stations . | . . . Recycling Units . | . . . Scanalyzers . | . . . Garrison Access . | . . . Terminal Hacks 2 | . 2 . Prototype ID Bank 1 | . 1 . Hauler Manifests 1 | . 1 . Fabricator Hacks . | . . . Repair Station Hacks . | . . . Recycling Unit Hacks . | . . . Scanalyzer . | . . . Garrison Access Hacks . | . . . Unauthorized Hacks . | . . . Terminals . | . . . Fabricators . | . . . Repair Stations . | . . . Recycling Units . | . . . Scanalyzers . | . . . Garrison Access . | . . . Data Cores Recovered . | . . . Used . | . . . Hacking Detections . | . . . Full Trace Events . | . . . Feedback Events . | . . . Feedback Blocked . | . . . Robot Schematics Acquired . | . . . Robots Built . | . . . Authchips . | . . . Time . | . . . Total Robot Build Rating . | . . . Part Schematics Acquired . | . . . Parts Built . | . . . Authchips . | . . . Time . | . . . Total Part Build Rating . | . . . Part Studies Acquired . | . . . Parts Repaired . | . . . Time . | . . . Parts Recycled . | . . . Recycled Matter . | . . . Retrieved Matter . | . . . Retrieved Components . | . . . Parts Scanalyzed . | . . . Part Schematics Acquired . | . . . Parts Damaged . | . . . Bothacking | -11 -10 -10 ------------ Run | Yrd Mat Min Used RIF Installer . | . . . Robots Hacked . | . . . Non-combat . | . . . Combat . | . . . Robot Hacks Applied . | . . . Relay Couplers Released . | . . . Fabnet Peak Effective % . | . . . Robots Rewired . | . . . Allies Hacked . | . . . Hacks Repelled . | . . . Allies | -11 -10 -10 -------- Run | Yrd Mat Min Total Allies 3 | . . 3 Largest Group 3 | . . 3 Highest-Rated Group 40 | . . 40 Highest-Rated Ally 16 | . . 16 Total Orders . | . . . Ally Attacks 5 | . . 5 Total Damage 47 | . . 47 Kills . | . . . Allies Corrupted . | . . . Allies Melted . | . . . Intel | -11 -10 -10 ------- Run | Yrd Mat Min Active Infowar (turns) 1493 | 11 1469 13 Seismic 1493 | 11 1469 13 Robot Analysis Total . | . . . Derelict Logs Recovered . | . . . Drone Launches . | . . . Drone Recoveries . | . . . Exploration | -11 -10 -10 ------------- Run | Yrd Mat Min Turns Passed 1605 | 98 1469 38 Spaces Moved 687 | 47 610 30 Core 27 | 2 4 21 Treads 660 | 45 606 9 Legs . | . . . Wheels . | . . . Hover . | . . . Flight . | . . . Fastest Speed 50 | 50 160 50 Average Speed 190 | 155 197 107 Slowest Speed 250 | 160 250 240 Overloaded Moves . | . . . Propulsion Burnouts . | . . . Robots Hopped . | . . . Potential Cave-ins . | . . . Cave-ins Triggered . | . . . Exploration Rate (%) 35 | 4 91 10 Regions Visited 2 Branch Regions 1 Pre-discovered Areas . | . . . Known Exits Taken . | . . . Unknown Exits Taken 2 | 1 1 . Scrap Searched . | . . . Spaces Dug . | . . . Terrain Destroyed . | . . . Melee . | . . . Projectile . | . . . AOE . | . . . Terrain Rammed . | . . . Walls Destroyed . | . . . Machines Disabled . | . . . Actions | -11 -10 -10 --------- Run | Yrd Mat Min Total 828 | 61 733 34 Wait 32 | . 30 2 Move 685 | 46 609 30 Hop . | . . . Pick Up 6 | 3 3 . Fast Attach 9 | 7 2 . Attach 2 | . 1 1 Detach 1 | . 1 . Swap 5 | 1 4 . Drop 3 | . 3 . Fire 85 | 4 80 1 Melee . | . . . Ram . | . . . Kick . | . . . Crush . | . . . Escape Stasis . | . . . Rewire . | . . . Trap . | . . . Miscellaneous . | . . . Route ------- -11/Scrapyard -10/Materials (discovered 5 exits: [*Mat x3] / [*Min x2]) -10/Mines History --------- Turn | Location | Event 33 | -11/Scrapyard | Discovered new exit (range 15) 99 | -11/Scrapyard | Entered Materials 304 | -10/Materials | Build established: Mutant 437 | -10/Materials | Discovered new exit (range 12) 550 | -10/Materials | Discovered new exit (range 4) 777 | -10/Materials | Discovered new exit (range 10) 1326 | -10/Materials | Discovered new exit (range 16) 1534 | -10/Materials | Discovered new exit (range 8) 1568 | -10/Materials | Entered Mines 1569 | -10/Mines | Assembled infested the area 1583 | -10/Mines | Assisted by bots powering up and referring to "LRC-V3" 1590 | -10/Mines | Released all parts (6) 1592 | -10/Mines | Met a Derelict bent on vengeance 1601 | -10/Mines | Core integrity fell below 50% 1603 | -10/Mines | Core integrity fell below 20% 1606 | -10/Mines | Destroyed by as-90949 with Assembled F-torch Last Messages --------------- 01585_ Mercenary 1a destroyed. 01585_ Trooper 1b destroyed. 01590_ Released Assault Rifle. 01590_ Released Lgt. Treads. 01590_ Released Ion Engine. 01590_ Released Lgt. Treads. 01590_ Released Hcp. Storage Unit. 01590_ Released Lgt. Assault Rifle. 01594_ as-60609 destroyed. 01597_ EMP Blaster destroyed. 01600_ Knocked back. 01601_ as-03742 destroyed. 01601_ as-88674 destroyed. 01601_ as-14307 destroyed. 01601_ as-81964 destroyed. 01601_ as-39804 destroyed. 01602_ as-39508 sneak attacks. 01602_ D-53 Grenadier destroyed. 01606_ The unstable cave ceiling collapses. 01606_ Shock Absorption System crushed. Map ----- +----------------------------------------------------+ | ???????????????????????????????????????????? | | ???????????????????????????????????????????? | | ???????????????????????????????????????????? | | ???????????????????????????????????????????? | | ???????????????????????????????????????????? | | ???????????????????????????????????????????? | | ???????????????????????????????????????????? | | ???????????????????????????????????????????? | | ???????????????????????????????????????????? | | ???????????????????????????????????????????? | | ???????????????????????????????????????????? | | ????????????????????????????#####???#??????? | | ???????????????????????????# ### ?????? | | ???????????????????????#### ?????? | | ??????????????????????## ?????? | | ?????????????????????## ?????? | | ?????????????????????# " #???????? | | ?????????????????????# ??????????? | | ??????????????????????# #?????????????? | | ???????????????????????# #?????????????? | | ??????????????????????## % #?????????????? | | ???????????????????#### ##?????????????? | | ??????????????????## ##??????????????? | | ??????????????????# a ######???????????? | | ??????????????????# # ##??????????? | | ??????????????????## a =a@ #??????????? | | ??????????????????## %= == #??????????? | | ??????????????????# aa!!% #??????????? | | ??????????????????# a %#% #?????????? | | ??????????????????# =a=a ##?????????? | | ??????????????????## # ! #??????????? | | ???????????????????##### #??????????? | | ???????????????????????# %= ###??????????? | | ???????????????????##### * #????????????? | | ???????????????????# r #????????????? | | ???????????????????# ### #????????????? | | ???????????????????????# #????????????? | | ???????????????????????### ####????????????? | | ?????????????????????????#"#???????????????? | | ?????????????????????????#%#???????????????? | | ?????????????????????????#"#???????????????? | | ????????????????????????? #???????????????? | | ?????????????????????????# #???????????????? | | ?????????????????????????# #???????????????? | | ?????????????????????????? ????????????????? | | ?????????????????????????? ????????????????? | | ?????????????????????????? ????????????????? | | ?????????????????????????? ????????????????? | | ?????????????????????????? ????????????????? | | ?????????????????????????? ????????????????? | +----------------------------------------------------+ Best States ------------- Heat Dissipation 25 Energy Generation 10 Energy Capacity 250 Matter Stores 300 Matter Capacity 300 Sight Range 16 Terrain Scan Density 10 Evasion (%) 50 Recoil Reduction 2 Item Schematics ----------------- None Robot Schematics ------------------ None Fabricated ------------ Nothing Repaired ---------- Nothing Studied --------- None Alien Tech Used ----------------- None Achievements -------------- None Challenges ------------ None Game ------ Seed PlasmaCoolingCleaver Manual? 0 Play Time 00:14:30 Cumulative 68.8 hours Start 2026.08.26 @ 11:35:28 End 2026.08.26 @ 12:42:51 Sessions 1 Manual Loads 0 Difficulty Rogue Special Mode None Game No. 138 Rogue 131 Adventurer 7 Explorer 0 Win Type - Total 1 Types 1/0/0/0/0/0/0/0/0/0 Lore% 38 Gallery% 43 Achievement% 34 Wizard Run 0 Options --------- Layout 1 ASCII 0 Keyboard 1 Movement Vi Keybinds 0 Fullscreen 1 Font 24/Smallcaps Map View 76x35 Zoom Use 0% Tactical HUD 1 Map Filters NONE Filters NONE Steam 1 RUN: 7bd13aaa-48fd-42cd-89e7-adbb457959b9